[Event "*** Titled Tuesday Blitz"]
[Site "Chess.com"]
[Date "2021.04.06"]
[Round "11"]
[White "Beca95"]
[Black "GMSrinath"]
[Result "0-1"]
[WhiteElo "2919"]
[BlackElo "2848"]
[TimeControl "180+1"]
[EndTime "12:06:21 PDT"]
[Termination "GMSrinath won by resignation"]

1. d4 {[%clk 0:03:00.9]} 1... Nf6 {[%clk 0:02:59.3]} 2. c4 {[%clk 0:03:01.5]}
2... e6 {[%clk 0:02:59.4]} 3. Nc3 {[%clk 0:03:01.9]} 3... Bb4 {[%clk 0:02:59.1]}
4. Qc2 {[%clk 0:03:02.5]} 4... d5 {[%clk 0:02:54.8]} 5. cxd5 {[%clk 0:03:01.8]}
5... exd5 {[%clk 0:02:55.7]} 6. Bg5 {[%clk 0:03:01.1]} 6... h6 {[%clk
0:02:50.3]} 7. Bh4 {[%clk 0:03:01.2]} 7... O-O {[%clk 0:02:49.8]} 8. e3 {[%clk
0:03:00.1]} 8... g5 {[%clk 0:02:36.2]} 9. Bg3 {[%clk 0:02:59.5]} 9... c5 {[%clk
0:02:37.1]} 10. dxc5 {[%clk 0:02:56.9]} 10... Nc6 {[%clk 0:02:28.4]} 11. O-O-O
{[%clk 0:02:43.9]} 11... Qa5 {[%clk 0:02:22.6]} 12. Nge2 {[%clk 0:02:42.2]}
12... Bxc5 {[%clk 0:02:18]} 13. a3 {[%clk 0:02:40.7]} 13... Be6 {[%clk
0:01:50.4]} 14. h4 {[%clk 0:02:26.5]} 14... Rac8 {[%clk 0:01:46.7]} 15. hxg5
{[%clk 0:02:25.5]} 15... hxg5 {[%clk 0:01:47.6]} 16. Kb1 {[%clk 0:02:19.3]}
16... Kg7 {[%clk 0:01:42.6]} 17. f4 {[%clk 0:02:05.2]} 17... g4 {[%clk 0:01:24]}
18. f5 {[%clk 0:02:00]} 18... Bd7 {[%clk 0:01:23.8]} 19. Nd4 {[%clk 0:01:54.7]}
19... Nxd4 {[%clk 0:01:16.6]} 20. exd4 {[%clk 0:01:50.5]} 20... Bxa3 {[%clk
0:01:17.2]} 21. Bd3 {[%clk 0:01:37.9]} 21... Bxb2 {[%clk 0:01:10.8]} 22. Kxb2
{[%clk 0:01:36.8]} 22... Rc6 {[%clk 0:01:08.3]} 23. Bb5 {[%clk 0:01:03.6]} 23...
Rb6 {[%clk 0:00:59.1]} 24. Qd2 {[%clk 0:00:58.4]} 24... Rxb5+ {[%clk 0:00:52]}
25. Kc2 {[%clk 0:00:52.2]} 25... Bxf5+ {[%clk 0:00:33.2]} 26. Qd3 {[%clk
0:00:40.1]} 26... Bxd3+ {[%clk 0:00:29.9]} 27. Rxd3 {[%clk 0:00:41]} 27... Rc8
{[%clk 0:00:28.9]} 28. Be5 {[%clk 0:00:40.8]} 28... Qa2+ {[%clk 0:00:26]} 29.
Kd1 {[%clk 0:00:40.6]} 29... Rxc3 {[%clk 0:00:25]} 0-1

[Event "*** Titled Tuesday Blitz"]
[Site "Chess.com"]
[Date "2021.04.06"]
[Round "11"]
[White "Fighter008"]
[Black "shimastream"]
[Result "1/2-1/2"]
[WhiteElo "2650"]
[BlackElo "2934"]
[TimeControl "180+1"]
[EndTime "12:06:22 PDT"]
[Termination "Game drawn by repetition"]

1. e4 {[%clk 0:03:00.9]} 1... d5 {[%clk 0:02:54.9]} 2. exd5 {[%clk 0:03:00.6]}
2... Qxd5 {[%clk 0:02:55.8]} 3. Nc3 {[%clk 0:03:00.3]} 3... Qd6 {[%clk
0:02:55.7]} 4. d4 {[%clk 0:03:00.5]} 4... Nf6 {[%clk 0:02:55.3]} 5. Bd3 {[%clk
0:03:00.7]} 5... Nc6 {[%clk 0:02:54.7]} 6. Nge2 {[%clk 0:03:00.5]} 6... Nb4
{[%clk 0:02:52.3]} 7. Bf4 {[%clk 0:02:59.4]} 7... Qd8 {[%clk 0:02:50.2]} 8. a3
{[%clk 0:02:56.3]} 8... Nxd3+ {[%clk 0:02:46.3]} 9. Qxd3 {[%clk 0:02:57.2]} 9...
c6 {[%clk 0:02:46.6]} 10. O-O-O {[%clk 0:02:56.1]} 10... g6 {[%clk 0:02:42.3]}
11. Be5 {[%clk 0:02:54.4]} 11... Bg7 {[%clk 0:02:42.1]} 12. f3 {[%clk
0:02:52.7]} 12... h5 {[%clk 0:02:31]} 13. Kb1 {[%clk 0:02:51.8]} 13... Bf5
{[%clk 0:02:30.5]} 14. Ne4 {[%clk 0:02:41.2]} 14... O-O {[%clk 0:02:12.1]} 15.
N2g3 {[%clk 0:02:36.4]} 15... Bc8 {[%clk 0:01:39.5]} 16. f4 {[%clk 0:02:24.3]}
16... h4 {[%clk 0:01:36.9]} 17. Bxf6 {[%clk 0:02:18.5]} 17... exf6 {[%clk
0:01:36.6]} 18. Ne2 {[%clk 0:02:18.6]} 18... Re8 {[%clk 0:01:35.2]} 19. N2c3
{[%clk 0:02:17.7]} 19... Bf5 {[%clk 0:01:32]} 20. Qf3 {[%clk 0:02:16.5]} 20...
Qd7 {[%clk 0:01:31]} 21. h3 {[%clk 0:02:10]} 21... Rad8 {[%clk 0:01:29.3]} 22.
Rhe1 {[%clk 0:02:09.6]} 22... b6 {[%clk 0:01:27.7]} 23. Qf2 {[%clk 0:02:09.8]}
23... Bxe4 {[%clk 0:01:23.4]} 24. Nxe4 {[%clk 0:02:03.4]} 24... Qd5 {[%clk
0:01:08.5]} 25. Nc3 {[%clk 0:01:35.5]} 25... Qh5 {[%clk 0:01:08.2]} 26. Rxe8+
{[%clk 0:01:31.6]} 26... Rxe8 {[%clk 0:01:09.1]} 27. d5 {[%clk 0:01:32.2]} 27...
cxd5 {[%clk 0:01:03.6]} 28. Rxd5 {[%clk 0:01:30.2]} 28... f5 {[%clk 0:01:03.8]}
29. Qd2 {[%clk 0:01:28.6]} 29... Qh8 {[%clk 0:00:57.6]} 30. Rd8 {[%clk
0:01:22.5]} 30... Kh7 {[%clk 0:00:57.1]} 31. Rd3 {[%clk 0:01:17.2]} 31... Rc8
{[%clk 0:00:53.2]} 32. Qf2 {[%clk 0:01:12.8]} 32... Bxc3 {[%clk 0:00:47.2]} 33.
Qxh4+ {[%clk 0:00:52.3]} 33... Kg8 {[%clk 0:00:46.9]} 34. Rd8+ {[%clk
0:00:52.2]} 34... Rxd8 {[%clk 0:00:42.6]} 35. Qxd8+ {[%clk 0:00:53.1]} 35... Kh7
{[%clk 0:00:38.9]} 36. Qh4+ {[%clk 0:00:52.1]} 36... Kg8 {[%clk 0:00:37.9]} 37.
Qd8+ {[%clk 0:00:52]} 37... Kh7 {[%clk 0:00:38]} 38. Qh4+ {[%clk 0:00:51.2]}
38... Kg8 {[%clk 0:00:36.8]} 39. Qd8+ {[%clk 0:00:51.1]} 1/2-1/2

[Event "*** Titled Tuesday Blitz"]
[Site "Chess.com"]
[Date "2021.04.06"]
[Round "11"]
[White "Matols"]
[Black "Yaryi_sergey"]
[Result "0-1"]
[WhiteElo "2307"]
[BlackElo "2512"]
[TimeControl "180+1"]
[EndTime "12:06:26 PDT"]
[Termination "Yaryi_sergey won on time"]

1. d4 {[%clk 0:03:00.9]} 1... Nf6 {[%clk 0:02:59.4]} 2. c4 {[%clk 0:03:00.9]}
2... g6 {[%clk 0:02:59.5]} 3. g3 {[%clk 0:03:01]} 3... d5 {[%clk 0:03:00.4]} 4.
cxd5 {[%clk 0:02:59.8]} 4... Nxd5 {[%clk 0:03:00.4]} 5. Nf3 {[%clk 0:02:58.6]}
5... Bg7 {[%clk 0:03:00.4]} 6. Bg2 {[%clk 0:02:58.5]} 6... O-O {[%clk
0:03:00.4]} 7. Nc3 {[%clk 0:02:58.5]} 7... c5 {[%clk 0:03:00.3]} 8. e4 {[%clk
0:02:46.6]} 8... Nb6 {[%clk 0:02:59.6]} 9. d5 {[%clk 0:02:42.6]} 9... e6 {[%clk
0:02:58.9]} 10. O-O {[%clk 0:02:39.9]} 10... Bxc3 {[%clk 0:02:57.9]} 11. bxc3
{[%clk 0:02:39.3]} 11... exd5 {[%clk 0:02:58.8]} 12. exd5 {[%clk 0:02:31.2]}
12... Qxd5 {[%clk 0:02:58.4]} 13. Qe2 {[%clk 0:02:22.9]} 13... Nc6 {[%clk
0:02:57.7]} 14. Bh6 {[%clk 0:02:21]} 14... Bg4 {[%clk 0:02:52.8]} 15. Rad1
{[%clk 0:02:09.4]} 15... Qe6 {[%clk 0:02:49.8]} 16. Qc2 {[%clk 0:01:49.5]} 16...
Bf5 {[%clk 0:02:48]} 17. Qc1 {[%clk 0:01:44.3]} 17... Qxa2 {[%clk 0:02:46.5]}
18. Qg5 {[%clk 0:01:29.1]} 18... f6 {[%clk 0:02:44.6]} 19. Qf4 {[%clk
0:01:28.5]} 19... Rfe8 {[%clk 0:02:36.5]} 20. Rfe1 {[%clk 0:01:16.7]} 20... Qf7
{[%clk 0:02:33.2]} 21. Nh4 {[%clk 0:01:08]} 21... Bc2 {[%clk 0:02:28.6]} 22. Rc1
{[%clk 0:01:00.9]} 22... g5 {[%clk 0:02:27]} 23. Qg4 {[%clk 0:00:50.7]} 23...
Bg6 {[%clk 0:02:25.9]} 24. Nf5 {[%clk 0:00:31.6]} 24... Bxf5 {[%clk 0:02:20.9]}
25. Qxf5 {[%clk 0:00:32.5]} 25... Qg6 {[%clk 0:02:21.1]} 26. Bd5+ {[%clk
0:00:20.2]} 26... Kh8 {[%clk 0:02:20.9]} 27. Qxg6 {[%clk 0:00:12.1]} 27... hxg6
{[%clk 0:02:16.6]} 28. Bxc6 {[%clk 0:00:09.9]} 28... bxc6 {[%clk 0:02:15.3]} 29.
h4 {[%clk 0:00:10]} 29... gxh4 {[%clk 0:02:10.4]} 30. gxh4 {[%clk 0:00:09.4]}
30... Nd5 {[%clk 0:02:10.1]} 31. Bd2 {[%clk 0:00:06.6]} 31... c4 {[%clk
0:02:09.4]} 32. Kg2 {[%clk 0:00:05.7]} 32... a5 {[%clk 0:02:09.3]} 33. Kf3
{[%clk 0:00:05.7]} 33... a4 {[%clk 0:02:09.3]} 34. Rg1 {[%clk 0:00:05.7]} 34...
Kh7 {[%clk 0:02:08.9]} 35. h5 {[%clk 0:00:05.3]} 35... g5 {[%clk 0:02:08.7]} 36.
Rg4 {[%clk 0:00:03.6]} 36... Nb6 {[%clk 0:02:03.2]} 37. Rd4 {[%clk 0:00:03.2]}
37... a3 {[%clk 0:02:02.1]} 38. Ra1 {[%clk 0:00:03.2]} 38... Red8 {[%clk
0:02:00.3]} 39. Rxd8 {[%clk 0:00:02.4]} 39... Rxd8 {[%clk 0:02:00.3]} 40. Be3
{[%clk 0:00:03.3]} 40... Nd5 {[%clk 0:01:57.4]} 41. Rxa3 {[%clk 0:00:03.2]}
41... Kh6 {[%clk 0:01:57.2]} 42. Bd4 {[%clk 0:00:02.9]} 42... Kxh5 {[%clk
0:01:56.5]} 43. Ra7 {[%clk 0:00:02.9]} 43... Re8 {[%clk 0:01:50.4]} 44. Ra6
{[%clk 0:00:02.2]} 44... Re6 {[%clk 0:01:50.4]} 45. Ra8 {[%clk 0:00:01.4]} 45...
Kg6 {[%clk 0:01:48]} 46. Rg8+ {[%clk 0:00:01]} 46... Kf5 {[%clk 0:01:48.1]} 47.
Rf8 {[%clk 0:00:01.1]} 47... Re4 {[%clk 0:01:47.4]} 0-1

[Event "*** Titled Tuesday Blitz"]
[Site "Chess.com"]
[Date "2021.04.06"]
[Round "11"]
[White "lacafi"]
[Black "ajedrez1101"]
[Result "1-0"]
[WhiteElo "2206"]
[BlackElo "2111"]
[TimeControl "180+1"]
[EndTime "12:06:29 PDT"]
[Termination "lacafi won by resignation"]

1. d4 {[%clk 0:03:00.9]} 1... g6 {[%clk 0:02:59.4]} 2. Nf3 {[%clk 0:03:00.9]}
2... Bg7 {[%clk 0:02:59.8]} 3. c4 {[%clk 0:02:59.5]} 3... d6 {[%clk 0:02:59.3]}
4. Nc3 {[%clk 0:02:59.9]} 4... e5 {[%clk 0:02:53.6]} 5. dxe5 {[%clk 0:02:59.8]}
5... dxe5 {[%clk 0:02:53.5]} 6. Qxd8+ {[%clk 0:02:59.1]} 6... Kxd8 {[%clk
0:02:53.6]} 7. e4 {[%clk 0:02:58.4]} 7... f6 {[%clk 0:02:42.2]} 8. Be3 {[%clk
0:02:54.5]} 8... Be6 {[%clk 0:02:35.8]} 9. O-O-O+ {[%clk 0:02:53.5]} 9... Nd7
{[%clk 0:02:36]} 10. Be2 {[%clk 0:02:41.5]} 10... c6 {[%clk 0:02:35.5]} 11. Na4
{[%clk 0:02:37.9]} 11... b6 {[%clk 0:02:25.2]} 12. Rd2 {[%clk 0:02:33]} 12...
Ke7 {[%clk 0:02:19.9]} 13. Rhd1 {[%clk 0:02:23.6]} 13... Bh6 {[%clk 0:02:18.3]}
14. Bxh6 {[%clk 0:02:20.4]} 14... Nxh6 {[%clk 0:02:18]} 15. h3 {[%clk 0:02:19]}
15... Nf7 {[%clk 0:02:10.7]} 16. b4 {[%clk 0:02:17.9]} 16... a5 {[%clk
0:02:03.9]} 17. b5 {[%clk 0:02:13.1]} 17... cxb5 {[%clk 0:01:57.8]} 18. cxb5
{[%clk 0:02:11.9]} 18... Rhc8+ {[%clk 0:01:51.4]} 19. Kb2 {[%clk 0:02:12.3]}
19... Nc5 {[%clk 0:01:45.5]} 20. Nxb6 {[%clk 0:02:09]} 20... Rab8 {[%clk
0:01:42.3]} 21. Nxc8+ {[%clk 0:02:04]} 21... Rxc8 {[%clk 0:01:42.1]} 22. Rc2
{[%clk 0:01:44]} 22... Na4+ {[%clk 0:01:29.1]} 23. Kc1 {[%clk 0:01:43.8]} 23...
Nc3 {[%clk 0:01:26.2]} 24. Rdd2 {[%clk 0:00:48.2]} 24... Nxe4 {[%clk 0:00:47.4]}
25. Rxc8 {[%clk 0:00:46.5]} 25... Bxc8 {[%clk 0:00:37.8]} 26. Rc2 {[%clk
0:00:41]} 26... Kd8 {[%clk 0:00:28.6]} 27. Bd3 {[%clk 0:00:37.4]} 27... Nxf2
{[%clk 0:00:26.2]} 28. Rxf2 {[%clk 0:00:35.6]} 28... f5 {[%clk 0:00:24.2]} 29.
Bc4 {[%clk 0:00:33.9]} 29... Nd6 {[%clk 0:00:23.5]} 30. Rd2 {[%clk 0:00:32.5]}
30... Ke7 {[%clk 0:00:23.1]} 31. Nxe5 {[%clk 0:00:32.6]} 1-0

[Event "*** Titled Tuesday Blitz"]
[Site "Chess.com"]
[Date "2021.04.06"]
[Round "11"]
[White "Kildepiotr"]
[Black "J36225"]
[Result "1-0"]
[WhiteElo "2642"]
[BlackElo "2438"]
[TimeControl "180+1"]
[EndTime "12:06:33 PDT"]
[Termination "Kildepiotr won by resignation"]

1. Nf3 {[%clk 0:03:00.9]} 1... Nf6 {[%clk 0:02:59.5]} 2. g3 {[%clk 0:03:01]}
2... g6 {[%clk 0:02:59.7]} 3. Bg2 {[%clk 0:03:01.5]} 3... Bg7 {[%clk 0:03:00.6]}
4. O-O {[%clk 0:03:01.5]} 4... O-O {[%clk 0:03:01.5]} 5. d4 {[%clk 0:03:01.9]}
5... d6 {[%clk 0:03:01.9]} 6. Nbd2 {[%clk 0:03:02]} 6... c6 {[%clk 0:03:00]} 7.
e4 {[%clk 0:03:01.6]} 7... Nbd7 {[%clk 0:02:59.7]} 8. Qe2 {[%clk 0:03:02.1]}
8... e5 {[%clk 0:02:59]} 9. dxe5 {[%clk 0:03:02.5]} 9... dxe5 {[%clk 0:02:58.2]}
10. a4 {[%clk 0:03:02.1]} 10... Qc7 {[%clk 0:02:56.8]} 11. b3 {[%clk 0:03:02]}
11... Re8 {[%clk 0:02:49.7]} 12. Bb2 {[%clk 0:03:01.4]} 12... Nc5 {[%clk
0:02:48.9]} 13. Rfd1 {[%clk 0:03:00.9]} 13... Bg4 {[%clk 0:02:48.1]} 14. h3
{[%clk 0:02:59.8]} 14... Bxf3 {[%clk 0:02:47.9]} 15. Bxf3 {[%clk 0:03:00.7]}
15... Rad8 {[%clk 0:02:46.9]} 16. Nc4 {[%clk 0:02:59.9]} 16... Rxd1+ {[%clk
0:02:32.3]} 17. Rxd1 {[%clk 0:02:59]} 17... Nfd7 {[%clk 0:01:44.3]} 18. Bg4
{[%clk 0:02:56.2]} 18... Nb6 {[%clk 0:01:39.4]} 19. Ba3 {[%clk 0:02:43.1]} 19...
Bf8 {[%clk 0:01:14.9]} 20. Bb2 {[%clk 0:02:18.2]} 20... Bg7 {[%clk 0:01:11.1]}
21. Nxb6 {[%clk 0:02:14.4]} 21... axb6 {[%clk 0:01:08.4]} 22. b4 {[%clk
0:02:02.9]} 22... Ne6 {[%clk 0:01:01.6]} 23. c3 {[%clk 0:01:59]} 23... Qe7
{[%clk 0:00:48]} 24. h4 {[%clk 0:01:56.7]} 24... Rd8 {[%clk 0:00:47.3]} 25.
Rxd8+ {[%clk 0:01:48.7]} 25... Nxd8 {[%clk 0:00:47.1]} 26. Qc4 {[%clk
0:01:46.6]} 26... h5 {[%clk 0:00:41.7]} 27. Bd1 {[%clk 0:01:46.1]} 27... Ne6
{[%clk 0:00:38.5]} 28. Bc1 {[%clk 0:01:44.5]} 28... Qf6 {[%clk 0:00:20.9]} 29.
Be3 {[%clk 0:01:42.2]} 29... g5 {[%clk 0:00:18.9]} 30. hxg5 {[%clk 0:01:38.4]}
30... Nxg5 {[%clk 0:00:19.8]} 31. Bxh5 {[%clk 0:01:36.3]} 31... Qh6 {[%clk
0:00:10.2]} 32. Bxf7+ {[%clk 0:01:28.1]} 32... Kh8 {[%clk 0:00:08.6]} 33. Bxg5
{[%clk 0:01:20.4]} 33... Qxg5 {[%clk 0:00:08.5]} 34. Qe6 {[%clk 0:01:19.4]}
34... Qc1+ {[%clk 0:00:06.9]} 35. Kg2 {[%clk 0:01:19.1]} 35... Qxc3 {[%clk
0:00:07]} 36. Qc8+ {[%clk 0:01:15.8]} 36... Kh7 {[%clk 0:00:07]} 37. Qh3+ {[%clk
0:01:15.3]} 37... Bh6 {[%clk 0:00:06.7]} 38. Qf5+ {[%clk 0:01:15.2]} 38... Kg7
{[%clk 0:00:07]} 39. Qg6+ {[%clk 0:01:14.6]} 39... Kf8 {[%clk 0:00:07.5]} 40.
Be6 {[%clk 0:01:14]} 1-0

[Event "*** Titled Tuesday Blitz"]
[Site "Chess.com"]
[Date "2021.04.06"]
[Round "11"]
[White "Forantes"]
[Black "Horizonevent"]
[Result "0-1"]
[WhiteElo "2362"]
[BlackElo "2497"]
[TimeControl "180+1"]
[EndTime "12:06:37 PDT"]
[Termination "Horizonevent won by resignation"]

1. Nf3 {[%clk 0:03:00.9]} 1... d5 {[%clk 0:02:59.7]} 2. g3 {[%clk 0:03:00.7]}
2... Nf6 {[%clk 0:02:59.7]} 3. Bg2 {[%clk 0:03:01.1]} 3... c5 {[%clk 0:03:00.1]}
4. O-O {[%clk 0:03:01.5]} 4... Nc6 {[%clk 0:03:00.7]} 5. d4 {[%clk 0:03:02.2]}
5... cxd4 {[%clk 0:03:00.5]} 6. Nxd4 {[%clk 0:03:03.1]} 6... e5 {[%clk
0:03:00.7]} 7. Nxc6 {[%clk 0:03:03.5]} 7... bxc6 {[%clk 0:03:01.6]} 8. c4 {[%clk
0:03:04.1]} 8... Be7 {[%clk 0:02:57.2]} 9. Nc3 {[%clk 0:02:53.6]} 9... d4 {[%clk
0:02:46.6]} 10. Ne4 {[%clk 0:02:33.2]} 10... O-O {[%clk 0:02:42.4]} 11. Nxf6+
{[%clk 0:02:32.2]} 11... Bxf6 {[%clk 0:02:42.6]} 12. c5 {[%clk 0:02:31.7]} 12...
Be6 {[%clk 0:02:37.1]} 13. b4 {[%clk 0:02:30]} 13... Bd5 {[%clk 0:02:35.8]} 14.
a4 {[%clk 0:02:08.5]} 14... Bxg2 {[%clk 0:02:34.2]} 15. Kxg2 {[%clk 0:02:09.4]}
15... Qd5+ {[%clk 0:02:34.6]} 16. f3 {[%clk 0:02:10.1]} 16... a5 {[%clk
0:02:33.8]} 17. b5 {[%clk 0:02:05.4]} 17... cxb5 {[%clk 0:02:30.5]} 18. axb5
{[%clk 0:02:06.3]} 18... Rfb8 {[%clk 0:02:29.2]} 19. Ba3 {[%clk 0:01:49.1]}
19... Rxb5 {[%clk 0:02:28.6]} 20. Qa4 {[%clk 0:01:49.7]} 20... Qb3 {[%clk
0:02:11.4]} 21. Qxb3 {[%clk 0:01:37.1]} 21... Rxb3 {[%clk 0:02:12.3]} 22. Rfc1
{[%clk 0:01:37.1]} 22... Be7 {[%clk 0:01:59.3]} 23. Rc4 {[%clk 0:01:27.5]} 23...
f6 {[%clk 0:01:50.3]} 24. f4 {[%clk 0:01:05]} 24... Kf7 {[%clk 0:01:49.2]} 25.
fxe5 {[%clk 0:01:05.2]} 25... fxe5 {[%clk 0:01:50.1]} 26. Bc1 {[%clk 0:01:03.3]}
26... Ke6 {[%clk 0:01:34.2]} 27. Bd2 {[%clk 0:00:31.9]} 27... Kd5 {[%clk
0:01:26.7]} 28. Rca4 {[%clk 0:00:28.1]} 28... Bxc5 {[%clk 0:01:18.3]} 29. Rxa5
{[%clk 0:00:20.4]} 29... Rxa5 {[%clk 0:01:17]} 30. Bxa5 {[%clk 0:00:21.3]} 30...
Rb2 {[%clk 0:01:13.5]} 31. Kf1 {[%clk 0:00:19.8]} 31... e4 {[%clk 0:01:11.5]}
32. Be1 {[%clk 0:00:17.7]} 32... d3 {[%clk 0:01:05.2]} 33. exd3 {[%clk
0:00:17.5]} 33... exd3 {[%clk 0:00:55.3]} 34. Ra8 {[%clk 0:00:15.1]} 34... d2
{[%clk 0:00:47.2]} 35. Rd8+ {[%clk 0:00:14.7]} 35... Bd6 {[%clk 0:00:47.5]} 0-1

[Event "*** Titled Tuesday Blitz"]
[Site "Chess.com"]
[Date "2021.04.06"]
[Round "11"]
[White "2346PL"]
[Black "kidagent"]
[Result "1-0"]
[WhiteElo "2493"]
[BlackElo "2350"]
[TimeControl "180+1"]
[EndTime "12:06:37 PDT"]
[Termination "2346PL won on time"]

1. d4 {[%clk 0:03:00.6]} 1... d5 {[%clk 0:03:00]} 2. Nc3 {[%clk 0:03:00.3]} 2...
Nf6 {[%clk 0:02:59.3]} 3. Bf4 {[%clk 0:03:00.7]} 3... a6 {[%clk 0:02:55.8]} 4.
e3 {[%clk 0:03:01.1]} 4... Bf5 {[%clk 0:02:54.1]} 5. f3 {[%clk 0:03:00.9]} 5...
e6 {[%clk 0:02:53.4]} 6. g4 {[%clk 0:03:01]} 6... Bg6 {[%clk 0:02:53]} 7. h4
{[%clk 0:03:01.8]} 7... h5 {[%clk 0:02:52.4]} 8. g5 {[%clk 0:03:02.4]} 8... Nfd7
{[%clk 0:02:52.2]} 9. Bd3 {[%clk 0:03:02.9]} 9... Bxd3 {[%clk 0:02:45.6]} 10.
Qxd3 {[%clk 0:03:03.8]} 10... Bd6 {[%clk 0:02:43.9]} 11. Nge2 {[%clk 0:03:01.9]}
11... Qe7 {[%clk 0:02:39.6]} 12. e4 {[%clk 0:02:54]} 12... Bxf4 {[%clk
0:02:24.3]} 13. Nxf4 {[%clk 0:02:53.3]} 13... dxe4 {[%clk 0:02:19.3]} 14. fxe4
{[%clk 0:02:52.4]} 14... g6 {[%clk 0:02:12.2]} 15. O-O-O {[%clk 0:02:50.2]}
15... Nc6 {[%clk 0:02:07.1]} 16. d5 {[%clk 0:02:47.5]} 16... Nce5 {[%clk
0:02:04.8]} 17. Qe2 {[%clk 0:02:46.5]} 17... O-O-O {[%clk 0:02:02.2]} 18. Qe3
{[%clk 0:02:36]} 18... Kb8 {[%clk 0:01:55.5]} 19. Rhf1 {[%clk 0:02:18.1]} 19...
Qc5 {[%clk 0:01:29.5]} 20. Qg3 {[%clk 0:02:06]} 20... Rhe8 {[%clk 0:01:23.4]}
21. Nd3 {[%clk 0:01:59]} 21... Nxd3+ {[%clk 0:01:18.7]} 22. Rxd3 {[%clk
0:01:59.9]} 22... exd5 {[%clk 0:01:15.4]} 23. Rxd5 {[%clk 0:01:56.6]} 23... Qc4
{[%clk 0:01:14.7]} 24. Rxf7 {[%clk 0:01:50.4]} 24... Nb6 {[%clk 0:00:45.1]} 25.
Rxd8+ {[%clk 0:01:31]} 25... Rxd8 {[%clk 0:00:46]} 26. Rf6 {[%clk 0:01:25.8]}
26... Qd4 {[%clk 0:00:36.8]} 27. b3 {[%clk 0:01:21.7]} 27... a5 {[%clk
0:00:15.2]} 28. a4 {[%clk 0:01:10]} 28... Rd7 {[%clk 0:00:07.8]} 29. e5 {[%clk
0:01:00.8]} 29... Re7 {[%clk 0:00:06.1]} 30. e6 {[%clk 0:00:58.8]} 30... Nc8
{[%clk 0:00:03.4]} 31. Rxg6 {[%clk 0:00:50.1]} 1-0

[Event "*** Titled Tuesday Blitz"]
[Site "Chess.com"]
[Date "2021.04.06"]
[Round "11"]
[White "Keks2017"]
[Black "Korchmar_Vasiliy"]
[Result "1-0"]
[WhiteElo "2573"]
[BlackElo "2653"]
[TimeControl "180+1"]
[EndTime "12:06:38 PDT"]
[Termination "Keks2017 won by checkmate"]

1. e4 {[%clk 0:03:00]} 1... c5 {[%clk 0:03:00.4]} 2. d3 {[%clk 0:02:59.8]} 2...
Nc6 {[%clk 0:02:59.5]} 3. g3 {[%clk 0:03:00]} 3... g6 {[%clk 0:03:00.1]} 4. Bg2
{[%clk 0:03:00.1]} 4... Bg7 {[%clk 0:03:00.7]} 5. f4 {[%clk 0:03:00.2]} 5... e6
{[%clk 0:02:50.5]} 6. Nf3 {[%clk 0:02:59.7]} 6... Nge7 {[%clk 0:02:51]} 7. O-O
{[%clk 0:02:59.7]} 7... O-O {[%clk 0:02:50.6]} 8. c3 {[%clk 0:02:56.7]} 8... d5
{[%clk 0:02:48.1]} 9. Qe2 {[%clk 0:02:56.2]} 9... b6 {[%clk 0:02:47.8]} 10. Re1
{[%clk 0:02:55.9]} 10... Ba6 {[%clk 0:02:47.5]} 11. e5 {[%clk 0:02:55.9]} 11...
Nf5 {[%clk 0:02:36.3]} 12. Nbd2 {[%clk 0:02:54.3]} 12... Rc8 {[%clk 0:02:33.2]}
13. Nf1 {[%clk 0:02:54.1]} 13... d4 {[%clk 0:02:30]} 14. c4 {[%clk 0:02:53.5]}
14... b5 {[%clk 0:02:28.6]} 15. b3 {[%clk 0:02:53.4]} 15... bxc4 {[%clk
0:02:28.1]} 16. bxc4 {[%clk 0:02:53.1]} 16... h5 {[%clk 0:02:17.4]} 17. Ng5
{[%clk 0:02:52.4]} 17... Qa5 {[%clk 0:01:57.4]} 18. Ne4 {[%clk 0:02:47.5]} 18...
Rfd8 {[%clk 0:01:49.4]} 19. h3 {[%clk 0:02:45.7]} 19... Rd7 {[%clk 0:01:19.6]}
20. g4 {[%clk 0:02:40.9]} 20... hxg4 {[%clk 0:01:19.2]} 21. hxg4 {[%clk
0:02:40.8]} 21... Ne3 {[%clk 0:01:20.1]} 22. Nxe3 {[%clk 0:02:37.1]} 22... dxe3
{[%clk 0:01:21]} 23. Bxe3 {[%clk 0:02:37]} 23... Nd4 {[%clk 0:01:19.1]} 24. Qf2
{[%clk 0:02:35.5]} 24... Rcd8 {[%clk 0:01:08.7]} 25. Rab1 {[%clk 0:02:02.9]}
25... Qa3 {[%clk 0:01:05.2]} 26. Red1 {[%clk 0:01:53.7]} 26... Bb7 {[%clk
0:00:57.1]} 27. Bxd4 {[%clk 0:01:38.2]} 27... cxd4 {[%clk 0:00:56.9]} 28. Nf6+
{[%clk 0:01:28.8]} 28... Bxf6 {[%clk 0:00:56.2]} 29. exf6 {[%clk 0:01:28.9]}
29... Bxg2 {[%clk 0:00:44.9]} 30. Kxg2 {[%clk 0:01:26.4]} 30... e5 {[%clk
0:00:40.5]} 31. f5 {[%clk 0:01:23.6]} 31... Qc5 {[%clk 0:00:37.6]} 32. Qh4
{[%clk 0:01:17.8]} 32... Qc6+ {[%clk 0:00:26.5]} 33. Kf2 {[%clk 0:01:17.5]}
33... e4 {[%clk 0:00:08.2]} 34. Rh1 {[%clk 0:01:14.9]} 34... e3+ {[%clk
0:00:08.4]} 35. Ke1 {[%clk 0:01:13.6]} 35... Qxh1+ {[%clk 0:00:02.7]} 36. Qxh1
{[%clk 0:01:13.2]} 36... Rb7 {[%clk 0:00:03.4]} 37. Rxb7 {[%clk 0:01:10.6]}
37... g5 {[%clk 0:00:02.7]} 38. Qh6 {[%clk 0:01:09.3]} 38... e2 {[%clk
0:00:01.8]} 39. Qg7# {[%clk 0:01:09.1]} 1-0

[Event "*** Titled Tuesday Blitz"]
[Site "Chess.com"]
[Date "2021.04.06"]
[Round "11"]
[White "paulrusan"]
[Black "PowerThinking2650"]
[Result "1-0"]
[WhiteElo "2287"]
[BlackElo "2366"]
[TimeControl "180+1"]
[EndTime "12:06:39 PDT"]
[Termination "paulrusan won on time"]

1. e4 {[%clk 0:03:00.6]} 1... e5 {[%clk 0:02:59.6]} 2. Nf3 {[%clk 0:03:00]} 2...
Nc6 {[%clk 0:02:59.6]} 3. Bc4 {[%clk 0:03:00]} 3... Nf6 {[%clk 0:02:59.1]} 4. d3
{[%clk 0:03:00]} 4... h6 {[%clk 0:02:58.9]} 5. O-O {[%clk 0:02:59.8]} 5... d6
{[%clk 0:02:58.5]} 6. h3 {[%clk 0:02:59.3]} 6... g6 {[%clk 0:02:58.6]} 7. c3
{[%clk 0:02:58.9]} 7... Bg7 {[%clk 0:02:58.7]} 8. a4 {[%clk 0:02:58.9]} 8... O-O
{[%clk 0:02:57.8]} 9. a5 {[%clk 0:02:59]} 9... a6 {[%clk 0:02:57.8]} 10. Nbd2
{[%clk 0:02:57.9]} 10... Kh7 {[%clk 0:02:55.7]} 11. Re1 {[%clk 0:02:56.4]} 11...
d5 {[%clk 0:02:51.8]} 12. exd5 {[%clk 0:02:56.2]} 12... Nxd5 {[%clk 0:02:51.8]}
13. Ne4 {[%clk 0:02:47.2]} 13... Be6 {[%clk 0:02:27.5]} 14. Qb3 {[%clk
0:02:43.9]} 14... b5 {[%clk 0:01:23.8]} 15. axb6 {[%clk 0:02:16.7]} 15... cxb6
{[%clk 0:01:23.5]} 16. Rxa6 {[%clk 0:01:29.3]} 16... Rxa6 {[%clk 0:01:02.3]} 17.
Bxa6 {[%clk 0:01:25]} 17... Ndb4 {[%clk 0:00:22.2]} 18. Qa4 {[%clk 0:01:11.1]}
18... Nxa6 {[%clk 0:00:17.7]} 19. Qxa6 {[%clk 0:01:09.5]} 19... Kh8 {[%clk
0:00:12.7]} 20. Be3 {[%clk 0:01:00]} 20... f5 {[%clk 0:00:10.9]} 21. Bxb6 {[%clk
0:00:59.4]} 21... Qd5 {[%clk 0:00:08.5]} 22. Nc5 {[%clk 0:00:58]} 22... Bc8
{[%clk 0:00:06.7]} 23. Qc4 {[%clk 0:00:49.1]} 23... Qxc4 {[%clk 0:00:04.3]} 24.
dxc4 {[%clk 0:00:49.1]} 24... e4 {[%clk 0:00:05.2]} 25. Nxe4 {[%clk 0:00:44.1]}
25... fxe4 {[%clk 0:00:04.3]} 26. Rxe4 {[%clk 0:00:44]} 26... Bf5 {[%clk
0:00:01.8]} 27. Re1 {[%clk 0:00:38.6]} 1-0